[Event "*** Titled Tuesday Blitz"]
[Site "Chess.com"]
[Date "2019.05.07"]
[Round "2"]
[White "Swarnapuri"]
[Black "Gubajdullin"]
[Result "0-1"]
[WhiteElo "2685"]
[BlackElo "2546"]
[TimeControl "180+2"]
[EndTime "13:26:59 PDT"]
[Termination "Gubajdullin won by checkmate"]

1. d4 {[%clk 0:03:01.9]} 1... d5 {[%clk 0:02:59.2]} 2. Bf4 {[%clk 0:03:03.1]}
2... Nf6 {[%clk 0:02:56.3]} 3. e3 {[%clk 0:03:04.5]} 3... c5 {[%clk 0:02:51.1]}
4. c3 {[%clk 0:03:05.2]} 4... Nc6 {[%clk 0:02:50]} 5. Nd2 {[%clk 0:03:05.6]}
5... Bf5 {[%clk 0:02:49.2]} 6. Ngf3 {[%clk 0:03:06.1]} 6... Qb6 {[%clk
0:02:45.9]} 7. Nh4 {[%clk 0:03:06.7]} 7... Bg4 {[%clk 0:02:44.5]} 8. Qb3 {[%clk
0:03:08.1]} 8... c4 {[%clk 0:02:44.6]} 9. Qc2 {[%clk 0:03:09.2]} 9... g6 {[%clk
0:02:42.5]} 10. h3 {[%clk 0:03:09.5]} 10... Be6 {[%clk 0:02:42.4]} 11. Nhf3
{[%clk 0:02:58.3]} 11... Bg7 {[%clk 0:02:41.3]} 12. e4 {[%clk 0:02:46.4]} 12...
Nxe4 {[%clk 0:02:37.6]} 13. Nxe4 {[%clk 0:02:45.2]} 13... dxe4 {[%clk
0:02:38.5]} 14. Nd2 {[%clk 0:02:46]} 14... Na5 {[%clk 0:02:23.5]} 15. Be3 {[%clk
0:02:36.6]} 15... Bd5 {[%clk 0:02:18.8]} 16. b4 {[%clk 0:02:22.1]} 16... cxb3
{[%clk 0:02:14.5]} 17. axb3 {[%clk 0:02:24]} 17... O-O {[%clk 0:02:02]} 18. c4
{[%clk 0:02:13.4]} 18... Be6 {[%clk 0:02:00.5]} 19. d5 {[%clk 0:02:09.7]} 19...
Qc7 {[%clk 0:01:53.3]} 20. Rxa5 {[%clk 0:02:02.8]} 20... Qxa5 {[%clk 0:01:53.4]}
21. dxe6 {[%clk 0:02:04.3]} 21... f5 {[%clk 0:01:54.2]} 22. g3 {[%clk
0:01:57.4]} 22... Rfd8 {[%clk 0:01:50.4]} 23. g4 {[%clk 0:01:33.2]} 23... f4
{[%clk 0:01:16.9]} 24. Bxf4 {[%clk 0:01:29.8]} 24... Bc3 {[%clk 0:01:16.7]} 25.
Bg2 {[%clk 0:01:09.2]} 25... Rd4 {[%clk 0:01:02.3]} 26. O-O {[%clk 0:00:33]}
26... Bxd2 {[%clk 0:01:00.7]} 27. Bxd2 {[%clk 0:00:34.4]} 27... Qxd2 {[%clk
0:00:58.5]} 28. Qxd2 {[%clk 0:00:35.8]} 28... Rxd2 {[%clk 0:00:59.3]} 29. Bxe4
{[%clk 0:00:37.7]} 29... Rb8 {[%clk 0:00:59.7]} 30. Ra1 {[%clk 0:00:39.3]} 30...
a6 {[%clk 0:01:00.1]} 31. Bd5 {[%clk 0:00:40]} 31... g5 {[%clk 0:00:55.4]} 32.
Ra5 {[%clk 0:00:40.3]} 32... b6 {[%clk 0:00:52.9]} 33. Rxa6 {[%clk 0:00:41.1]}
33... Kg7 {[%clk 0:00:49.1]} 34. Kg2 {[%clk 0:00:40.2]} 34... Rf8 {[%clk
0:00:47]} 35. Rxb6 {[%clk 0:00:40.9]} 35... Rfxf2+ {[%clk 0:00:45.9]} 36. Kg3
{[%clk 0:00:42.2]} 36... Rfe2 {[%clk 0:00:43.7]} 37. Kf3 {[%clk 0:00:41.2]}
37... Rh2 {[%clk 0:00:44]} 38. Kg3 {[%clk 0:00:40.3]} 38... Rhe2 {[%clk
0:00:39.8]} 39. Kf3 {[%clk 0:00:38.8]} 39... Rh2 {[%clk 0:00:22.1]} 40. Rb8
{[%clk 0:00:37.7]} 40... Rxh3+ {[%clk 0:00:18.8]} 41. Ke4 {[%clk 0:00:39.3]}
41... Rg3 {[%clk 0:00:18.5]} 42. Re8 {[%clk 0:00:34.2]} 42... Rxg4+ {[%clk
0:00:17.9]} 43. Ke3 {[%clk 0:00:35.7]} 43... Rb2 {[%clk 0:00:17]} 44. Rxe7+
{[%clk 0:00:37]} 44... Kg6 {[%clk 0:00:16.6]} 45. Rb7 {[%clk 0:00:37.7]} 45...
Rg1 {[%clk 0:00:15.3]} 46. e7 {[%clk 0:00:38.4]} 46... Re1+ {[%clk 0:00:15.9]}
47. Kd3 {[%clk 0:00:39.9]} 47... Kf6 {[%clk 0:00:17]} 48. Be4 {[%clk 0:00:40.7]}
48... Rxe4 {[%clk 0:00:13.5]} 49. Kxe4 {[%clk 0:00:41.6]} 49... Re2+ {[%clk
0:00:14.5]} 50. Kd5 {[%clk 0:00:32.9]} 50... Rxe7 {[%clk 0:00:15.1]} 51. Rb8
{[%clk 0:00:18.1]} 51... Rd7+ {[%clk 0:00:09.6]} 52. Ke4 {[%clk 0:00:18.9]}
52... Re7+ {[%clk 0:00:09]} 53. Kd4 {[%clk 0:00:20.2]} 53... g4 {[%clk
0:00:09.1]} 54. c5 {[%clk 0:00:19.7]} 54... Rd7+ {[%clk 0:00:08.6]} 55. Ke4
{[%clk 0:00:20.6]} 55... Rd1 {[%clk 0:00:09.3]} 56. Rg8 {[%clk 0:00:20.9]} 56...
h5 {[%clk 0:00:08.9]} 57. c6 {[%clk 0:00:21.9]} 57... Rc1 {[%clk 0:00:09.7]} 58.
Kd5 {[%clk 0:00:23.5]} 58... Kf5 {[%clk 0:00:09.3]} 59. b4 {[%clk 0:00:23.5]}
59... h4 {[%clk 0:00:10.3]} 60. b5 {[%clk 0:00:24.7]} 60... h3 {[%clk
0:00:11.1]} 61. b6 {[%clk 0:00:26.2]} 61... h2 {[%clk 0:00:12.2]} 62. Rh8 {[%clk
0:00:27.8]} 62... g3 {[%clk 0:00:13]} 63. c7 {[%clk 0:00:28.4]} 63... g2 {[%clk
0:00:13.3]} 64. Rf8+ {[%clk 0:00:28.6]} 64... Kg4 {[%clk 0:00:12.8]} 65. Rg8+
{[%clk 0:00:29.5]} 65... Kf3 {[%clk 0:00:13]} 66. Rf8+ {[%clk 0:00:29.1]} 66...
Ke2 {[%clk 0:00:13.4]} 67. b7 {[%clk 0:00:25.7]} 67... g1=Q {[%clk 0:00:11.3]}
68. Re8+ {[%clk 0:00:26.3]} 68... Kd2 {[%clk 0:00:11.5]} 69. c8=Q {[%clk
0:00:27.1]} 69... h1=Q+ {[%clk 0:00:11.4]} 70. Kd6 {[%clk 0:00:28.3]} 70...
Qhh2+ {[%clk 0:00:11.9]} 71. Ke6 {[%clk 0:00:29.4]} 71... Qg4+ {[%clk
0:00:12.1]} 72. Ke7 {[%clk 0:00:29.2]} 72... Qh7+ {[%clk 0:00:11.6]} 73. Kf6
{[%clk 0:00:30.3]} 73... Qgg6+ {[%clk 0:00:11.6]} 74. Ke5 {[%clk 0:00:31.5]}
74... Qe4+ {[%clk 0:00:11.9]} 75. Kf6 {[%clk 0:00:32.5]} 75... Qhg6# {[%clk
0:00:11.9]} 0-1

[Event "*** Titled Tuesday Blitz"]
[Site "Chess.com"]
[Date "2019.05.07"]
[Round "2"]
[White "2165149677570"]
[Black "PulpanJ"]
[Result "1-0"]
[WhiteElo "2338"]
[BlackElo "2557"]
[TimeControl "180+2"]
[EndTime "13:27:55 PDT"]
[Termination "2165149677570 won by checkmate"]

1. e4 {[%clk 0:03:01.9]} 1... e5 {[%clk 0:02:59.9]} 2. Nf3 {[%clk 0:03:03.2]}
2... Nc6 {[%clk 0:03:01.8]} 3. Bb5 {[%clk 0:03:02.9]} 3... Nf6 {[%clk
0:03:01.5]} 4. O-O {[%clk 0:03:03.8]} 4... Nxe4 {[%clk 0:03:02.4]} 5. Re1 {[%clk
0:03:04.1]} 5... Nd6 {[%clk 0:03:03.6]} 6. Nxe5 {[%clk 0:03:05.5]} 6... Be7
{[%clk 0:03:05.2]} 7. Bf1 {[%clk 0:03:05.9]} 7... Nxe5 {[%clk 0:03:07.1]} 8.
Rxe5 {[%clk 0:03:07.2]} 8... O-O {[%clk 0:03:08.8]} 9. d4 {[%clk 0:03:08.3]}
9... Bf6 {[%clk 0:03:10.4]} 10. Re1 {[%clk 0:03:09.8]} 10... Re8 {[%clk
0:03:12.1]} 11. c3 {[%clk 0:03:10.8]} 11... Rxe1 {[%clk 0:03:12.7]} 12. Qxe1
{[%clk 0:03:12.7]} 12... Ne8 {[%clk 0:03:14.6]} 13. Nd2 {[%clk 0:03:10.7]} 13...
d5 {[%clk 0:03:15.6]} 14. Nf3 {[%clk 0:03:11.4]} 14... g6 {[%clk 0:03:16.1]} 15.
Bd3 {[%clk 0:03:12.3]} 15... Ng7 {[%clk 0:03:17.1]} 16. h3 {[%clk 0:03:10.9]}
16... c6 {[%clk 0:03:18.5]} 17. Bf4 {[%clk 0:03:12.2]} 17... Bf5 {[%clk
0:03:19.9]} 18. Bf1 {[%clk 0:03:05.2]} 18... Qb6 {[%clk 0:03:18.8]} 19. b4
{[%clk 0:03:04.2]} 19... a5 {[%clk 0:03:16.6]} 20. a3 {[%clk 0:03:03]} 20... Re8
{[%clk 0:03:14.9]} 21. Qd2 {[%clk 0:03:02.8]} 21... Ne6 {[%clk 0:03:15.4]} 22.
Be5 {[%clk 0:02:59.8]} 22... Bxe5 {[%clk 0:03:16.3]} 23. Nxe5 {[%clk 0:03:01.4]}
23... Qc7 {[%clk 0:03:14.5]} 24. g4 {[%clk 0:02:59.3]} 24... Be4 {[%clk
0:03:14.3]} 25. f3 {[%clk 0:02:56.9]} 25... f6 {[%clk 0:03:10.6]} 26. fxe4
{[%clk 0:02:52.1]} 26... fxe5 {[%clk 0:03:10.9]} 27. exd5 {[%clk 0:02:44.1]}
27... Nf4 {[%clk 0:03:05.5]} 28. dxc6 {[%clk 0:02:23.8]} 28... e4 {[%clk
0:03:01.5]} 29. Qe3 {[%clk 0:02:09.4]} 29... Nd5 {[%clk 0:02:41.3]} 30. Bc4
{[%clk 0:02:09.4]} 30... bxc6 {[%clk 0:02:35.8]} 31. Rf1 {[%clk 0:01:36.5]}
31... Kg7 {[%clk 0:02:19.3]} 32. Bxd5 {[%clk 0:01:30.5]} 32... cxd5 {[%clk
0:02:21.2]} 33. bxa5 {[%clk 0:00:49.2]} 33... Ra8 {[%clk 0:02:07.8]} 34. Qf2
{[%clk 0:00:44.4]} 34... Qe7 {[%clk 0:02:07.9]} 35. Qb2 {[%clk 0:00:33.3]} 35...
Rxa5 {[%clk 0:02:02.3]} 36. Qb4 {[%clk 0:00:34.4]} 36... Qxb4 {[%clk 0:01:57.3]}
37. axb4 {[%clk 0:00:36.3]} 37... Ra3 {[%clk 0:01:58.8]} 38. Rc1 {[%clk
0:00:34.9]} 38... Ra2 {[%clk 0:01:59.7]} 39. c4 {[%clk 0:00:25.3]} 39... Rb2
{[%clk 0:01:55.9]} 40. c5 {[%clk 0:00:17.9]} 40... Rxb4 {[%clk 0:01:56.7]} 41.
c6 {[%clk 0:00:18.7]} 41... Rb8 {[%clk 0:01:57.8]} 42. Kf2 {[%clk 0:00:19.4]}
42... Kf6 {[%clk 0:01:57.9]} 43. Ke3 {[%clk 0:00:19.9]} 43... g5 {[%clk
0:01:59.1]} 44. h4 {[%clk 0:00:20]} 44... h6 {[%clk 0:01:58]} 45. hxg5+ {[%clk
0:00:21.9]} 45... hxg5 {[%clk 0:01:59.9]} 46. c7 {[%clk 0:00:21.4]} 46... Rc8
{[%clk 0:01:59.6]} 47. Rc6+ {[%clk 0:00:22.7]} 47... Ke7 {[%clk 0:02:00.3]} 48.
Rg6 {[%clk 0:00:21.8]} 48... Rxc7 {[%clk 0:02:01]} 49. Rxg5 {[%clk 0:00:22.6]}
49... Kd6 {[%clk 0:01:56.7]} 50. Rg6+ {[%clk 0:00:21.7]} 50... Kd7 {[%clk
0:01:56.8]} 51. Kf4 {[%clk 0:00:21.5]} 51... Rc8 {[%clk 0:01:44.3]} 52. Rg7+
{[%clk 0:00:17.4]} 52... Ke6 {[%clk 0:01:43.2]} 53. Rg6+ {[%clk 0:00:18.3]}
53... Kf7 {[%clk 0:01:40.6]} 54. Rd6 {[%clk 0:00:19.6]} 54... Re8 {[%clk
0:01:40.2]} 55. Ke3 {[%clk 0:00:19.1]} 55... Rg8 {[%clk 0:01:38.7]} 56. Kf4
{[%clk 0:00:15.8]} 56... Re8 {[%clk 0:01:34.7]} 57. Ke3 {[%clk 0:00:16.5]} 57...
Rg8 {[%clk 0:01:35]} 58. Rxd5 {[%clk 0:00:18]} 58... Rxg4 {[%clk 0:01:35.6]} 59.
Re5 {[%clk 0:00:18.6]} 59... Kf6 {[%clk 0:01:37.2]} 60. Rxe4 {[%clk 0:00:15.1]}
60... Rg1 {[%clk 0:01:38.2]} 61. Kd3 {[%clk 0:00:13.1]} 61... Kf5 {[%clk
0:01:38.1]} 62. Re8 {[%clk 0:00:13.6]} 62... Rc1 {[%clk 0:01:37.8]} 63. d5
{[%clk 0:00:13.3]} 63... Kf6 {[%clk 0:01:38.9]} 64. Kd4 {[%clk 0:00:14.2]} 64...
Kf7 {[%clk 0:01:40]} 65. Re2 {[%clk 0:00:15.7]} 65... Rd1+ {[%clk 0:01:38.3]}
66. Kc5 {[%clk 0:00:16.4]} 66... Rc1+ {[%clk 0:01:39.7]} 67. Kd6 {[%clk
0:00:16.8]} 67... Ra1 {[%clk 0:01:38.8]} 68. Kc6 {[%clk 0:00:16.7]} 68... Ra6+
{[%clk 0:01:39.1]} 69. Kb5 {[%clk 0:00:17.1]} 69... Rd6 {[%clk 0:01:27]} 70. Kc5
{[%clk 0:00:18.1]} 70... Rd8 {[%clk 0:01:28.2]} 71. d6 {[%clk 0:00:17.7]} 71...
Rc8+ {[%clk 0:01:26.2]} 72. Kb6 {[%clk 0:00:18.9]} 72... Rc1 {[%clk 0:01:27]}
73. d7 {[%clk 0:00:16.7]} 73... Rd1 {[%clk 0:01:27.9]} 74. Kc7 {[%clk
0:00:17.8]} 74... Rc1+ {[%clk 0:01:29.1]} 75. Kd8 {[%clk 0:00:19]} 75... Rd1
{[%clk 0:01:30.2]} 76. Rf2+ {[%clk 0:00:18.9]} 76... Kg7 {[%clk 0:01:31.2]} 77.
Rf4 {[%clk 0:00:16.8]} 77... Rd2 {[%clk 0:01:27.5]} 78. Ke7 {[%clk 0:00:16.4]}
78... Re2+ {[%clk 0:01:28]} 79. Kd6 {[%clk 0:00:17.9]} 79... Rd2+ {[%clk
0:01:29.3]} 80. Ke6 {[%clk 0:00:19.1]} 80... Rd1 {[%clk 0:01:30.1]} 81. Rf5
{[%clk 0:00:15]} 81... Re1+ {[%clk 0:00:02.3]} 82. Kd6 {[%clk 0:00:13.4]} 82...
Rd1+ {[%clk 0:00:02.8]} 83. Rd5 {[%clk 0:00:14.7]} 83... Rf1 {[%clk 0:00:03.2]}
84. d8=Q {[%clk 0:00:15.1]} 84... Rf7 {[%clk 0:00:04.7]} 85. Rg5+ {[%clk
0:00:15.2]} 85... Kh6 {[%clk 0:00:05.4]} 86. Rg1 {[%clk 0:00:12.4]} 86... Rf4
{[%clk 0:00:02.2]} 87. Qh8# {[%clk 0:00:12.8]} 1-0

[Event "*** Titled Tuesday Blitz"]
[Site "Chess.com"]
[Date "2019.05.07"]
[Round "2"]
[White "Vincent_Vega95"]
[Black "murmah2003"]
[Result "0-1"]
[WhiteElo "2663"]
[BlackElo "2667"]
[TimeControl "180+2"]
[EndTime "13:28:32 PDT"]
[Termination "murmah2003 won by resignation"]

1. d4 {[%clk 0:02:59.7]} 1... d6 {[%clk 0:02:58.7]} 2. Nf3 {[%clk 0:02:59.9]}
2... g6 {[%clk 0:02:56.9]} 3. c4 {[%clk 0:03:00]} 3... Bg7 {[%clk 0:02:57.8]} 4.
Nc3 {[%clk 0:03:00.4]} 4... Nd7 {[%clk 0:02:55.7]} 5. e4 {[%clk 0:03:00.6]} 5...
e5 {[%clk 0:02:52.7]} 6. Be2 {[%clk 0:03:01.3]} 6... Ngf6 {[%clk 0:02:50.7]} 7.
O-O {[%clk 0:03:01.4]} 7... O-O {[%clk 0:02:49.9]} 8. Be3 {[%clk 0:03:00.5]}
8... Re8 {[%clk 0:02:37.8]} 9. d5 {[%clk 0:02:59.1]} 9... Nh5 {[%clk 0:02:31.3]}
10. g3 {[%clk 0:02:59.8]} 10... Bf8 {[%clk 0:02:29.7]} 11. Ne1 {[%clk
0:02:58.7]} 11... Ng7 {[%clk 0:02:27.7]} 12. Nd3 {[%clk 0:02:59.8]} 12... f5
{[%clk 0:02:26.2]} 13. f3 {[%clk 0:03:00.5]} 13... Be7 {[%clk 0:02:22]} 14. Qd2
{[%clk 0:03:01.4]} 14... Rf8 {[%clk 0:02:08.9]} 15. Bh6 {[%clk 0:02:55]} 15...
Nf6 {[%clk 0:02:09]} 16. Kg2 {[%clk 0:02:49.2]} 16... Qd7 {[%clk 0:02:07.3]} 17.
Kg1 {[%clk 0:02:35.8]} 17... fxe4 {[%clk 0:01:58.8]} 18. fxe4 {[%clk 0:02:36.4]}
18... Qh3 {[%clk 0:01:58.4]} 19. Nf2 {[%clk 0:02:32.6]} 19... Qd7 {[%clk
0:01:55.3]} 20. b4 {[%clk 0:02:33.2]} 20... a5 {[%clk 0:01:54.7]} 21. a3 {[%clk
0:02:34.1]} 21... Qe8 {[%clk 0:01:46]} 22. Kg2 {[%clk 0:02:27.6]} 22... Bd7
{[%clk 0:01:42.8]} 23. h3 {[%clk 0:02:27.6]} 23... Nfh5 {[%clk 0:01:37.7]} 24.
Ng4 {[%clk 0:02:21.9]} 24... Nf6 {[%clk 0:01:31.2]} 25. Nf2 {[%clk 0:01:59.4]}
25... Qf7 {[%clk 0:01:09.3]} 26. Nd3 {[%clk 0:01:57.3]} 26... b6 {[%clk
0:00:48.5]} 27. g4 {[%clk 0:01:53.1]} 27... axb4 {[%clk 0:00:46.8]} 28. axb4
{[%clk 0:01:51.9]} 28... Rxa1 {[%clk 0:00:48.7]} 29. Rxa1 {[%clk 0:01:53.2]}
29... Kh8 {[%clk 0:00:41.1]} 30. Qe3 {[%clk 0:01:52.8]} 30... Ng8 {[%clk
0:00:39.9]} 31. Bg5 {[%clk 0:01:38.6]} 31... Bxg5 {[%clk 0:00:39.3]} 32. Qxg5
{[%clk 0:01:40.5]} 32... h6 {[%clk 0:00:40.1]} 33. Qe3 {[%clk 0:01:41.3]} 33...
h5 {[%clk 0:00:39.3]} 34. Rf1 {[%clk 0:01:40.3]} 34... Qe7 {[%clk 0:00:39.7]}
35. Rxf8 {[%clk 0:01:41.5]} 35... Qxf8 {[%clk 0:00:41.6]} 36. c5 {[%clk
0:01:42.3]} 36... bxc5 {[%clk 0:00:39.8]} 37. bxc5 {[%clk 0:01:44.2]} 37... hxg4
{[%clk 0:00:39.2]} 38. hxg4 {[%clk 0:01:44.6]} 38... Nf6 {[%clk 0:00:37]} 39.
Qh6+ {[%clk 0:01:25]} 39... Nh7 {[%clk 0:00:13.6]} 40. Qxg6 {[%clk 0:01:25.9]}
40... Qb8 {[%clk 0:00:15.5]} 41. c6 {[%clk 0:00:59.7]} 41... Be8 {[%clk
0:00:15.9]} 42. Qh6 {[%clk 0:01:00.9]} 42... Qb3 {[%clk 0:00:15.6]} 43. Qd2
{[%clk 0:00:59.3]} 43... Nf8 {[%clk 0:00:12.5]} 44. Nd1 {[%clk 0:00:56.4]} 44...
Ng6 {[%clk 0:00:13.2]} 45. N1f2 {[%clk 0:00:55.5]} 45... Qa4 {[%clk 0:00:08.5]}
46. Qb4 {[%clk 0:00:49.4]} 46... Qa1 {[%clk 0:00:08.1]} 47. Qb8 {[%clk
0:00:43.6]} 47... Qa2 {[%clk 0:00:06.2]} 48. Bf3 {[%clk 0:00:37.1]} 48... Nh4+
{[%clk 0:00:06.9]} 49. Kg3 {[%clk 0:00:38.3]} 49... Nxf3 {[%clk 0:00:04.5]} 50.
Kxf3 {[%clk 0:00:40.2]} 50... Qa5 {[%clk 0:00:04.4]} 51. Qd8 {[%clk 0:00:39]}
51... Kh7 {[%clk 0:00:04.9]} 52. Qe7 {[%clk 0:00:39.5]} 52... Bg6 {[%clk
0:00:04.3]} 53. Qh4+ {[%clk 0:00:33.3]} 53... Kg8 {[%clk 0:00:04.7]} 54. Qh6
{[%clk 0:00:34.7]} 54... Bh7 {[%clk 0:00:04.5]} 55. g5 {[%clk 0:00:31.1]} 55...
Qd2 {[%clk 0:00:04.5]} 56. Qf6 {[%clk 0:00:27.1]} 56... Bxe4+ {[%clk 0:00:05.5]}
57. Kg3 {[%clk 0:00:14.1]} 57... Qe3+ {[%clk 0:00:06.8]} 58. Kh2 {[%clk
0:00:11.8]} 58... Bxd3 {[%clk 0:00:07.4]} 59. Nxd3 {[%clk 0:00:09.2]} 59... Qxd3
{[%clk 0:00:09.2]} 60. g6 {[%clk 0:00:10.6]} 60... Qd2+ {[%clk 0:00:09.4]} 61.
Kh1 {[%clk 0:00:11]} 61... Qxd5+ {[%clk 0:00:10.3]} 62. Kg1 {[%clk 0:00:10.8]}
62... Qd1+ {[%clk 0:00:09.2]} 63. Kg2 {[%clk 0:00:10.7]} 63... Qd2+ {[%clk
0:00:09.5]} 64. Kg1 {[%clk 0:00:11]} 64... Qd1+ {[%clk 0:00:11]} 65. Kg2 {[%clk
0:00:11.9]} 65... Qg4+ {[%clk 0:00:12.4]} 66. Kh1 {[%clk 0:00:12]} 66... Qh5+
{[%clk 0:00:10.5]} 67. Kg1 {[%clk 0:00:12.8]} 67... Qg4+ {[%clk 0:00:11.8]} 68.
Kh1 {[%clk 0:00:14]} 68... Qf5 {[%clk 0:00:13.4]} 69. Qd8+ {[%clk 0:00:13.9]}
69... Qf8 {[%clk 0:00:13.8]} 70. Qxc7 {[%clk 0:00:14.4]} 70... Qf1+ {[%clk
0:00:05.4]} 71. Kh2 {[%clk 0:00:15.5]} 71... Qf2+ {[%clk 0:00:06.9]} 72. Kh1
{[%clk 0:00:16.6]} 72... Qf1+ {[%clk 0:00:07.5]} 73. Kh2 {[%clk 0:00:17.7]}
73... Qf2+ {[%clk 0:00:08.6]} 74. Kh1 {[%clk 0:00:18.9]} 74... Qh4+ {[%clk
0:00:10]} 75. Kg1 {[%clk 0:00:18.9]} 75... Qg5+ {[%clk 0:00:11.9]} 76. Kh1
{[%clk 0:00:18.3]} 76... Qh6+ {[%clk 0:00:12.2]} 77. Kg1 {[%clk 0:00:17.1]}
77... Qxg6+ {[%clk 0:00:14.1]} 78. Kf1 {[%clk 0:00:18.2]} 78... Ne8 {[%clk
0:00:09.6]} 79. Qd7 {[%clk 0:00:15.6]} 79... Qf7+ {[%clk 0:00:10.6]} 80. Ke1
{[%clk 0:00:14.7]} 80... Kf8 {[%clk 0:00:11.8]} 81. Qd8 {[%clk 0:00:12.1]} 81...
Qc7 {[%clk 0:00:10.2]} 82. Qd7 {[%clk 0:00:13.2]} 82... Qxd7 {[%clk 0:00:10.3]}
83. cxd7 {[%clk 0:00:13.7]} 83... Ke7 {[%clk 0:00:12.2]} 0-1